fUST/lending_fUST_20250618
["ID","MTS","AMOUNT","RATE_DAILY","PERIOD"]
[366327164,1750189842900,-460.0,0.00022904,6]
[366327165,1750189842909,-720.31,0.00022904,6]
[366327166,1750189842918,-460.0,0.00022904,6]
[366327167,1750189842927,-460.0,0.00022904,6]
[366327168,1750189842936,-460.0,0.00022904,6]
[366327169,1750189842945,-460.0,0.00022904,6]
[366327170,1750189842959,-460.0,0.00022904,6]
[366327171,1750189842968,-460.0,0.00022904,6]
[366327172,1750189842977,-460.0,0.00022904,6]
[366327173,1750189842986,-460.0,0.00022904,6]
[366327174,1750189842997,-460.0,0.00022904,6]
[366327175,1750189843006,-460.0,0.00022904,6]
[366327176,1750189843015,-460.0,0.00022904,6]
[366327177,1750189843025,-460.0,0.00022904,6]
[366327178,1750189843035,-1222.61,0.00022904,6]
[366327179,1750189843045,-460.0,0.00022904,6]
[366327180,1750189843054,-1392.35,0.00022904,6]
[366327181,1750189843063,-460.0,0.00022904,6]
[366327182,1750189843227,-639.56,0.00022904,6]
[366327183,1750189843237,-460.0,0.00022904,6]
[366327184,1750189843246,-1284.92,0.00022904,6]
[366327185,1750189843256,-278.78351605,0.00022969,8]
[366327186,1750189843265,-166.96849292,0.00022986,2]
[366327187,1750189843275,-678.33,0.00023013,6]
[366327188,1750189843284,-321.19,0.00023013,6]
[366327189,1750189843293,-460.0,0.00023013,6]
[366327190,1750189843304,-855.71,0.00023013,6]
[366327191,1750189843313,-460.0,0.00023013,6]
[366327192,1750189843322,-720.31,0.00023013,6]
[366327193,1750189843333,-460.0,0.00023013,6]
[366327194,1750189843342,-460.0,0.00023013,6]
[366327195,1750189843353,-460.0,0.00023013,6]
[366327196,1750189843363,-460.0,0.00023013,6]
[366327197,1750189843372,-298.04,0.00023013,6]
[366327198,1750189843381,-460.0,0.00023013,6]
[366327199,1750189843390,-460.0,0.00023013,6]
[366327200,1750189843399,-460.0,0.00023013,6]
[366327201,1750189843409,-460.0,0.00023013,6]
[366327202,1750189843418,-460.0,0.00023013,6]
[366327203,1750189843427,-460.0,0.00023013,6]
[366327204,1750189843436,-460.0,0.00023013,6]
[366327205,1750189843444,-1222.61,0.00023013,6]
[366327206,1750189843453,-460.0,0.00023013,6]
[366327207,1750189843463,-1392.35,0.00023013,6]
[366327208,1750189843472,-460.0,0.00023013,6]
[366327209,1750189843481,-639.56,0.00023013,6]
[366327210,1750189843490,-460.0,0.00023013,6]
[366327211,1750189843499,-1284.92,0.00023013,6]
[366327212,1750189843509,-1500.0,0.00023068,2]
[366327213,1750189843518,-500.0,0.00023122,2]
[366327214,1750189843526,-678.33,0.00023123,6]
[366327215,1750189843535,-185.01,0.00023123,6]
[366327216,1750189843543,-855.71,0.00023123,6]
[366327217,1750189843552,-460.0,0.00023123,6]
[366327218,1750189843562,-720.31,0.00023123,6]
[366327219,1750189843571,-258.45,0.00023123,6]
[366327220,1750189843580,-460.0,0.00023123,6]
[366327221,1750189843590,-460.0,0.00023123,6]
[366327222,1750189843599,-460.0,0.00023123,6]
[366327223,1750189843608,-460.0,0.00023123,6]
[366327224,1750189843617,-460.0,0.00023123,6]
[366327225,1750189843627,-154.06,0.00023123,6]
[366327226,1750189843636,-460.0,0.00023123,6]
[366327227,1750189843645,-460.0,0.00023123,6]
[366327228,1750189843655,-460.0,0.00023123,6]
[366327229,1750189843664,-460.0,0.00023123,6]
[366327230,1750189843674,-1222.61,0.00023123,6]
[366327231,1750189843683,-460.0,0.00023123,6]
[366327232,1750189843693,-1392.35,0.00023123,6]
[366327233,1750189843702,-460.0,0.00023123,6]
[366327234,1750189843712,-639.56,0.00023123,6]
[366327235,1750189843721,-460.0,0.00023123,6]
[366327236,1750189843731,-1284.92,0.00023123,6]
[366327237,1750189843740,-278.78351605,0.00023141,8]
[366327238,1750189843750,-171.22945417,0.00023209,2]
[366327239,1750189843760,-678.33,0.00023232,6]
[366327241,1750189843769,-855.71,0.00023232,6]
[366327242,1750189843779,-338.42,0.00023232,6]
[366327243,1750189843788,-720.31,0.00023232,6]
[366327245,1750189843797,-460.0,0.00023232,6]
[366327246,1750189843807,-376.54,0.00023232,6]
[366327247,1750189843817,-460.0,0.00023232,6]
[366327248,1750189843827,-460.0,0.00023232,6]
[366327249,1750189843839,-460.0,0.00023232,6]
[366327250,1750189843849,-424.18,0.00023232,6]
[366327251,1750189843858,-460.0,0.00023232,6]
[366327252,1750189843868,-460.0,0.00023232,6]
[366327253,1750189843877,-471.76,0.00023232,6]
[366327254,1750189843888,-1222.61,0.00023232,6]
[366327255,1750189843898,-342.78524349,0.00023232,6]
[366327257,1750189843907,-1392.35,0.00023232,6]
[366327258,1750189843917,-460.0,0.00023232,6]
[366327259,1750189843928,-639.56,0.00023232,6]
[366327260,1750189843939,-460.0,0.00023232,6]
[366327262,1750189843950,-364.0,0.00023257,2]
[366327264,1750189843960,-278.78351605,0.00023314,9]
[366327266,1750189843970,-678.33,0.00023342,6]
[366327268,1750189843979,-855.71,0.00023342,6]
[366327270,1750189843991,-720.31,0.00023342,6]
[366327272,1750189844001,-460.0,0.00023342,6]
[366327274,1750189844011,-460.0,0.00023342,6]
[366327276,1750189844021,-460.0,0.00023342,6]
[366327278,1750189844032,-460.0,0.00023342,6]
[366327280,1750189844043,-460.0,0.00023342,6]
[366327282,1750189844052,-586.64,0.00023342,6]
[366327284,1750189844062,-1222.61,0.00023342,6]
[366327286,1750189844072,-1392.35,0.00023342,6]
[366327288,1750189844083,-549.18806241,0.00023342,6]
[366327290,1750189844093,-639.56,0.00023342,6]
[366327292,1750189844103,-460.0,0.00023342,6]
[366327294,1750189844112,-500.0,0.00023387,2]
[366327296,1750189844122,-160.0,0.00023396,2]
[366327298,1750189844132,-678.33,0.00023452,6]
[366327300,1750189844142,-855.71,0.00023452,6]
[366327302,1750189844152,-720.31,0.00023452,6]
[366327304,1750189844161,-460.0,0.00023452,6]
[366327306,1750189844171,-460.0,0.00023452,6]
[366327308,1750189844180,-460.0,0.00023452,6]
[366327310,1750189844190,-460.0,0.00023452,6]
[366327312,1750189844200,-460.0,0.00023452,6]
[366327314,1750189844209,-1222.61,0.00023452,6]
[366327316,1750189844218,-1392.35,0.00023452,6]
[366327318,1750189844228,-639.56,0.00023452,6]
[366327320,1750189844238,-460.0,0.00023452,6]
[366327322,1750189844247,-500.0,0.00023478,2]
[366327324,1750189844258,-215.0738,0.00023486,2]
[366327326,1750189844269,-500.0,0.00023486,2]
[366327328,1750189844278,-504.27480815,0.00023486,2]
[366327330,1750189844288,-500.0,0.00023486,2]
[366327332,1750189844299,-600.0,0.00023486,2]
[366327334,1750189844308,-500.0,0.00023486,2]
[366327336,1750189844318,-500.0,0.00023486,2]
[366327338,1750189844329,-278.78351605,0.00023486,9]
[366327340,1750189844339,-364.0,0.00023507,2]
[366327342,1750189844349,-19095.66007,0.00023517,2]
[366327344,1750189844359,-500.0,0.00023518,2]
[366327346,1750189844368,-500.0,0.00023518,2]
[366327348,1750189844381,-500.0,0.00023518,2]
[366327350,1750189844390,-500.0,0.00023518,2]
[366327352,1750189844400,-678.33,0.00023561,6]
[366327354,1750189844409,-855.71,0.00023561,6]
[366327356,1750189844419,-720.31,0.00023561,6]
[366327358,1750189844429,-405.77,0.00023561,6]
[366327360,1750189844439,-200.0,0.00023561,6]
[366327362,1750189844448,-460.0,0.00023561,6]
[366327364,1750189844458,-460.0,0.00023561,6]
[366327366,1750189844468,-460.0,0.00023561,6]
[366327368,1750189844478,-256.06,0.00023561,6]
[366327370,1750189844488,-1222.61,0.00023561,6]
[366327372,1750189844497,-1392.35,0.00023561,6]
[366327374,1750189844508,-639.56,0.00023561,6]
[366327376,1750189844517,-460.0,0.00023561,6]
[366327378,1750189844526,-500.0,0.00023594,2]
[366327380,1750189844536,-2457.18,0.000236,7]
[366327382,1750189844546,-156.851535,0.00023644,2]
[366327384,1750189844555,-151.0,0.00023647,6]
[366327386,1750189844565,-278.78351605,0.00023659,9]
[366327388,1750189844575,-500.0,0.0002367,2]
[366327390,1750189844588,-678.33,0.00023671,6]
[366327392,1750189844597,-855.71,0.00023671,6]
[366327394,1750189844607,-720.31,0.00023671,6]
[366327396,1750189844617,-460.0,0.00023671,6]
[366327398,1750189844627,-460.0,0.00023671,6]
[366327400,1750189844637,-595.18,0.00023671,6]
[366327402,1750189844646,-1222.61,0.00023671,6]
[366327404,1750189844656,-1392.35,0.00023671,6]
[366327406,1750189844665,-639.56,0.00023671,6]
[366327408,1750189844675,-155.64,0.00023671,6]
[366327410,1750189844684,-500.0,0.00023671,2]
[366327411,1750189844693,-500.0,0.00023671,2]
[366327414,1750189844704,-500.0,0.00023671,2]
[366327416,1750189844713,-171.22945417,0.00023674,2]
[366327417,1750189844723,-32722.17,0.000237,7]
[366327419,1750189844732,-500.0,0.00023721,2]
[366327421,1750189844741,-500.0,0.00023721,2]
[366327423,1750189844751,-507.4259494,0.00023721,2]
[366327425,1750189844760,-2000.0,0.0002378,7]
[366327427,1750189844770,-2000.0,0.0002378,7]
[366327429,1750189844779,-2000.0,0.0002378,7]
[366327431,1750189844789,-2000.0,0.0002378,7]
[366327433,1750189844799,-2122.22143324,0.0002378,7]
[366327435,1750189844808,-678.33,0.0002378,6]
[366327437,1750189844817,-855.71,0.0002378,6]
[366327440,1750189844830,-720.31,0.0002378,6]
[366327441,1750189844839,-460.0,0.0002378,6]
[366327443,1750189844848,-460.0,0.0002378,6]
[366327445,1750189844858,-1222.61,0.0002378,6]
[366327447,1750189844869,-1392.35,0.0002378,6]
[366327449,1750189844878,-639.56,0.0002378,6]
[366327451,1750189844887,-151.0,0.00023788,7]
[366327453,1750189844896,-151.0,0.00023788,7]
[366327455,1750189844906,-151.0,0.000238,7]
[366327457,1750189844915,-151.0,0.000238,7]
[366327459,1750189844924,-151.0,0.00023816,6]
[366327461,1750189844934,-420.0,0.00023816,2]
[366327463,1750189844943,-227.0,0.00023817,2]
[366327465,1750189844954,-278.78351605,0.00023831,10]
[366327467,1750189844965,-270.78,0.0002386,2]
[366327469,1750189844974,-678.33,0.0002389,6]
[366327471,1750189844983,-855.71,0.0002389,6]
[366327473,1750189844993,-720.31,0.0002389,6]
[366327475,1750189845003,-460.0,0.0002389,6]
[366327477,1750189845013,-539.46,0.0002389,6]
[366327479,1750189845022,-1222.61,0.0002389,6]
[366327481,1750189845032,-1392.35,0.0002389,6]
[366327483,1750189845042,-639.56,0.0002389,6]
[366327485,1750189845051,-151.0,0.00023985,7]
[366327487,1750189845062,-797.02,0.00024,7]
[366327489,1750189845071,-202.43673506,0.00024,2]
[366327491,1750189845083,-678.33,0.00024,6]
[366327492,1750189845092,-855.71,0.00024,6]
[366327494,1750189845101,-720.31,0.00024,6]
[366327495,1750189845111,-460.0,0.00024,6]
[366327496,1750189845120,-1222.61,0.00024,6]
[366327497,1750189845129,-1392.35,0.00024,6]
[366327498,1750189845139,-639.56,0.00024,6]
[366327499,1750189845148,-278.78351605,0.00024003,10]
[366327500,1750189845157,-1112.42713456,0.00024034,2]
[366327501,1750189845167,-1000.0,0.00024034,2]
[366327502,1750189845176,-1200.0,0.00024034,2]
[366327503,1750189845186,-1000.0,0.00024034,2]
[366327504,1750189845195,-1000.0,0.00024034,2]
[366327505,1750189845204,-500.0,0.00024066,2]
[366327506,1750189845213,-584.74449099,0.00024066,2]
[366327507,1750189845223,-798.12,0.000241,2]
[366327508,1750189845233,-678.33,0.00024109,6]
[366327510,1750189845243,-855.71,0.00024109,6]
[366327511,1750189845252,-720.31,0.00024109,6]
[366327512,1750189845262,-274.71808169,0.00024109,6]
[366327513,1750189845273,-1222.61,0.00024109,6]
[366327514,1750189845283,-1392.35,0.00024109,6]
[366327515,1750189845292,-639.56,0.00024109,6]
[366327516,1750189845302,-500.0,0.00024124,2]
[366327517,1750189845312,-171.22945417,0.00024138,2]
[366327518,1750189845321,-151.0,0.00024154,7]
[366327519,1750189845331,-278.78351605,0.00024176,10]
[366327520,1750189845341,-500.0,0.00024188,2]
[366327521,1750189845350,-365.4795681,0.00024192,2]
[366327522,1750189845360,-365.4795681,0.00024192,2]
[366327523,1750189845369,-365.4795681,0.00024192,2]
[366327524,1750189845380,-365.4795681,0.00024192,2]
[366327525,1750189845390,-365.4795681,0.00024192,2]
[366327526,1750189845399,-656.2724451,0.00024192,2]
[366327527,1750189845408,-678.33,0.00024219,6]
[366327528,1750189845418,-855.71,0.00024219,6]
[366327529,1750189845427,-720.31,0.00024219,6]
[366327530,1750189845437,-1222.61,0.00024219,6]
[366327531,1750189845447,-1392.35,0.00024219,6]
[366327532,1750189845457,-639.56,0.00024219,6]
[366327533,1750189845466,-337.59613405,0.00024219,2]
[366327534,1750189845475,-304.26549004,0.00024219,2]
[366327535,1750189845485,-541.53280507,0.00024219,2]
[366327536,1750189845495,-1000.0,0.00024269,2]
[366327537,1750189845506,-500.0,0.00024269,2]
[366327538,1750189845515,-964.0,0.00024294,2]
[366327539,1750189845524,-2160.0,0.00024294,2]
[366327540,1750189845534,-150.0,0.00024294,2]
[366327541,1750189845544,-150.0,0.00024294,2]
[366327542,1750189845553,-150.0,0.00024294,2]
[366327543,1750189845562,-150.0,0.00024294,2]
[366327544,1750189845572,-150.0,0.00024294,2]
[366327545,1750189845583,-151.0,0.000243,7]
[366327546,1750189845593,-364.0,0.00024301,2]
[366327547,1750189845602,-151.0,0.00024324,7]
[366327548,1750189845612,-678.33,0.00024328,6]
[366327549,1750189845622,-855.71,0.00024328,6]
[366327550,1750189845632,-720.31,0.00024328,6]
[366327551,1750189845641,-1222.61,0.00024328,6]
[366327552,1750189845651,-1392.35,0.00024328,6]
[366327553,1750189845660,-639.56,0.00024328,6]
[366327554,1750189845669,-459.1516927,0.00024329,2]
[366327555,1750189845678,-153.0,0.00024329,2]
[366327556,1750189845687,-176.2005054,0.00024329,2]
[366327557,1750189845696,-573.4653004,0.00024329,2]
[366327558,1750189845705,-153.0,0.00024329,2]
[366327559,1750189845714,-153.0,0.00024329,2]
[366327560,1750189845723,-900.0,0.00024333,2]
[366327561,1750189845733,-278.78351605,0.00024348,11]
[366327562,1750189845742,-2205.89,0.00024349,2]
[366327563,1750189845750,-500.0,0.00024351,2]
[366327564,1750189845758,-150.0,0.000244,5]
[366327565,1750189845767,-678.37000001,0.00024438,6]
[366327566,1750189845776,-855.9,0.00024438,6]
[366327567,1750189845785,-720.4,0.00024438,6]
[366327568,1750189845794,-1222.8,0.00024438,6]
[366327569,1750189845802,-1392.41,0.00024438,6]
[366327570,1750189845812,-639.74180765,0.00024438,6]
[366327571,1750189845821,-364.0,0.00024463,2]
[366327572,1750189845830,-151.0,0.00024493,7]
[366327573,1750189845839,-615.984186,0.000245,3]
[366327574,1750189845847,-1000.0,0.000245,2]
[366327575,1750189845856,-278.78351605,0.00024521,11]
[366327576,1750189845864,-1504.00044034,0.00024582,2]
[366327577,1750189845873,-1800.0,0.00024582,2]
[366327578,1750189845882,-1500.0,0.00024582,2]
[366327579,1750189845892,-1528.37945555,0.00024582,2]
[366327580,1750189845902,-500.0,0.00024597,2]
[366327581,1750189845910,-236.757832,0.000246,7]
[366327582,1750189845920,-171.22945417,0.00024602,2]
[366327583,1750189845929,-200.0,0.0002462,11]
[366327584,1750189845939,-151.0,0.00024662,7]
[366327585,1750189845951,-151.0,0.0002469,7]
[366327586,1750189845961,-151.0,0.0002469,7]
[366327587,1750189845971,-278.78351605,0.00024693,11]
[366327588,1750189845984,-2457.18,0.000247,7]
[366327590,1750189845994,-800.0,0.00024719,2]
[366327591,1750189846002,-160.0,0.00024766,2]
[366327593,1750189846012,-151.0,0.00024768,2]
[366327595,1750189846023,-151.0,0.00024768,2]
[366327597,1750189846032,-151.0,0.00024768,2]
[366327599,1750189846041,-151.0,0.00024768,2]
[366327600,1750189846051,-151.0,0.00024795,2]
[366327602,1750189846060,-151.0,0.00024795,2]
[366327604,1750189846069,-151.0,0.000248,7]
[366327606,1750189846078,-151.0,0.000248,7]
[366327607,1750189846088,-2000.0,0.000248,2]
[366327608,1750189846098,-426.72312379,0.000248,2]
[366327609,1750189846107,-200.0,0.000248,3]
[366327610,1750189846116,-357.19,0.000248,31]
[366327611,1750189846125,-357.19,0.000248,31]
[366327612,1750189846135,-357.19,0.000248,31]
[366327613,1750189846145,-357.19,0.000248,31]
[366327614,1750189846154,-357.19,0.000248,31]
[366327615,1750189846163,-357.19,0.000248,31]
[366327616,1750189846173,-357.19,0.000248,31]
[366327617,1750189846182,-357.19,0.000248,31]
[366327618,1750189846191,-357.19,0.000248,31]
[366327619,1750189846201,-357.19,0.000248,31]
[366327620,1750189846210,-357.19,0.000248,31]
[366327622,1750189846220,-357.19,0.000248,31]
[366327623,1750189846229,-357.19,0.000248,31]
[366327624,1750189846238,-357.19,0.000248,31]
[366327625,1750189846248,-357.19,0.000248,31]
[366327626,1750189846258,-357.19,0.000248,31]
[366327627,1750189846268,-800.0,0.0002481,2]
[366327628,1750189846277,-1500.0,0.00024817,2]
[366327629,1750189846287,-210.4705419,0.00024823,2]
[366327630,1750189846296,-151.0,0.00024823,2]
[366327631,1750189846307,-151.0,0.00024831,7]
[366327632,1750189846316,-365.0,0.00024831,2]
[366327633,1750189846328,-151.0,0.0002485,2]
[366327634,1750189846339,-223.0315306,0.00024855,2]
[366327635,1750189846348,-278.78351605,0.00024866,12]
[366327636,1750189846358,-200.0,0.00024866,120]
[366327637,1750189846367,-245.0,0.00024878,2]
[366327638,1750189846377,-151.0,0.000249,7]
[366327639,1750189846386,-151.0,0.000249,7]
[366327640,1750189846396,-2000.0,0.000249,2]
[366327641,1750189846405,-32722.17,0.000249,7]
[366327642,1750189846415,-328915.87870806,0.000249,2]
[366327643,1750189846696,-730.06,0.00021917,6]
[366327644,1750189846707,-502.37970391,0.00021917,6]
[366327645,1750189846718,-730.06,0.00022027,6]
[366327646,1750189846729,-730.06,0.00022136,6]
[366327647,1750189846739,-730.06,0.00022246,6]
[366327648,1750189846748,-588.48029609,0.00022356,6]
[366327649,1750189846764,-141.57970391,0.00022356,6]
[366327650,1750189846774,-730.06,0.00022465,6]
[366327651,1750189846784,-730.06,0.00022575,6]
[366327652,1750189846793,-1284.92,0.00023232,6]
[366327653,1750189846803,-1284.92,0.00023342,6]
[366327654,1750189846814,-20.99425396,0.00023356,2]
[366327655,1750189846965,-460.0,0.00021917,6]
[366327656,1750189846975,-460.0,0.00021917,6]
[366327657,1750189846984,-180.0,0.00022027,6]
[366327658,1750189846995,-280.0,0.00022027,6]
[366327659,1750189847006,-460.0,0.00022136,6]
[366327660,1750189847015,-460.0,0.00022246,6]
[366327661,1750189847025,-730.06,0.00022684,6]
[366327662,1750189847036,-730.06,0.00022794,6]
[366327663,1750189847046,-730.06,0.00022904,6]
[366327664,1750189847055,-654.67137807,0.00023013,6]
[366327665,1750189847101,-333.9387205,0.00022356,6]
[366327666,1750189847111,-75.38862193,0.00023013,6]
[366327667,1750189847120,-730.06,0.00023123,6]
[366327668,1750189847129,-730.06,0.00023232,6]
[366327669,1750189847139,-730.06,0.00023342,6]
[366327670,1750189847149,-479.00574604,0.00023356,2]
[366327671,1750189847158,-1074.63290055,0.00023452,6]
[366327672,1750189890901,200.0,0.00023875,120]
[366327673,1750190325941,284.490459,0.00013699,2]
[366327674,1750190416185,626.75279161,0.00023853,120]
[366327675,1750190949139,-5000.0,0.00019588,2]
[366327676,1750190949161,-284.490459,0.00020187,2]
[366327677,1750190949183,-180.207732,0.00020553,2]
[366327678,1750190949210,-298.77140914,0.000209,4]
[366327679,1750190949231,-177.831984,0.00021027,2]
[366327680,1750190949259,-298.77140905,0.00021072,4]
[366327681,1750190949279,-500.0,0.00021164,2]
[366327682,1750190949305,-298.77140905,0.00021245,4]
[366327683,1750190949332,-94.54619776,0.00021417,5]
[366327714,1750191031978,-639.9754962,0.00020525,2]
[366327716,1750191031989,-5000.0,0.00021203,2]
[366327718,1750191032000,-148.57959081,0.00021691,2]
[366327733,1750191032186,-11.42040919,0.00021691,2]
[366327734,1750191032196,-171.22945417,0.00021817,2]
[366327735,1750191032206,-300.0,0.00021915,2]
[366327736,1750191032216,-300.0,0.00021915,2]
[366327737,1750191032226,-500.0,0.00021916,2]
[366327738,1750191032235,-400.0,0.00021916,2]
[366327739,1750191032244,-500.0,0.00021916,2]
[366327741,1750191032255,-500.0,0.00021916,2]
[366327742,1750191032264,-500.0,0.00021916,2]
[366327743,1750191032273,-500.0,0.00021916,2]
[366327744,1750191032283,-500.0,0.00021916,2]
[366327745,1750191032292,-500.0,0.00021916,2]
[366327746,1750191032302,-500.0,0.00021916,2]
[366327747,1750191032311,-500.0,0.00021916,2]
[366327748,1750191032321,-500.0,0.00021916,2]
[366327749,1750191032330,-500.0,0.00021916,2]
[366327750,1750191032339,-500.0,0.00021916,2]
[366327751,1750191032349,-500.0,0.00021916,2]
[366327752,1750191032358,-500.0,0.00021916,2]
[366327753,1750191032367,-522.35125417,0.00021916,2]
[366327754,1750191032379,-500.0,0.00021916,2]
[366327755,1750191032389,-500.0,0.00021916,2]
[366327756,1750191032398,-500.0,0.00021916,2]
[366327757,1750191032408,-500.0,0.00021916,2]
[366327758,1750191032418,-313.22251545,0.00021916,2]
[366327759,1750191032429,-160.661,0.00021916,2]
[366327760,1750191032438,-460.0,0.00021917,6]
[366327761,1750191032449,-547.3,0.00021917,6]
[366327762,1750191032458,-460.0,0.00021917,6]
[366327763,1750191032468,-460.0,0.00021917,2]
[366327764,1750191032477,-460.0,0.00021917,6]
[366327765,1750191032487,-460.0,0.00021917,6]
[366327766,1750191032496,-478.12,0.00021917,6]
[366327767,1750191032506,-460.0,0.00021917,6]
[366327768,1750191032516,-465.39748592,0.00021917,6]
[366327769,1750191032525,-460.0,0.00021917,6]
[366327770,1750191032535,-460.0,0.00021917,6]
[366327771,1750191032544,-460.0,0.00021917,6]
[366327772,1750191032554,-462.51542571,0.00021917,6]
[366327773,1750191032564,-528.02734931,0.00021917,6]
[366327774,1750191032573,-586.32868557,0.00021917,6]
[366327775,1750191032582,-460.0,0.00021917,6]
[366327776,1750191032591,-416.9858036,0.00021917,6]
[366327777,1750191032601,-460.0,0.00021917,6]
[366327778,1750191032612,-460.0,0.00021917,6]
[366327779,1750191032621,-516.39,0.00021917,6]
[366327780,1750191032631,-460.0,0.00021917,6]
[366327781,1750191032640,-460.0,0.00021917,6]
[366327782,1750191032649,-460.0,0.00021917,6]
[366327783,1750191032659,-460.0,0.00021917,6]
[366327784,1750191032669,-323.33827109,0.00021917,6]
[366327785,1750191032678,-307.65218454,0.00021917,6]
[366327786,1750191032688,-460.0,0.00021917,6]
[366327787,1750191032698,-460.0,0.00021917,6]
[366327788,1750191032707,-460.0,0.00021917,6]
[366327789,1750191032717,-460.0,0.00021917,6]
[366327790,1750191032727,-460.0,0.00021917,6]
[366327791,1750191032736,-231.8659061,0.00021917,6]
[366327792,1750191032745,-460.0,0.00021917,6]
[366327793,1750191032754,-460.0,0.00021917,6]
[366327795,1750191032764,-460.0,0.00021917,6]
[366327797,1750191032773,-460.0,0.00021917,6]
[366327799,1750191032783,-460.0,0.00021917,6]
[366327801,1750191032792,-460.0,0.00021917,6]
[366327803,1750191032802,-460.0,0.00021917,6]
[366327805,1750191032811,-460.0,0.00021917,6]
[366327807,1750191032821,-341.19534364,0.00021917,6]
[366327809,1750191032831,-460.0,0.00021917,6]
[366327811,1750191032840,-318.28473797,0.00021917,6]
[366327812,1750191032849,-275.61790475,0.00021917,6]
[366327813,1750191032859,-460.0,0.00021917,6]
[366327814,1750191032868,-460.0,0.00021917,6]
[366327815,1750191032878,-152.78798631,0.00021917,6]
[366327816,1750191032890,-307.21201369,0.00021917,6]
[366327817,1750191032900,-460.0,0.00021917,6]
[366327818,1750191032909,-500.0,0.00021917,6]
[366327819,1750191032919,-500.0,0.00021917,6]
[366327820,1750191032929,-500.0,0.00021917,6]
[366327821,1750191032938,-407.35470996,0.00021917,6]
[366327822,1750191032947,-460.0,0.00021917,6]
[366327823,1750191032957,-460.0,0.00021917,6]
[366327824,1750191032967,-210.0,0.00021917,6]
[366327825,1750191032978,-460.0,0.00021917,6]
[366327826,1750191032988,-460.0,0.00021917,6]
[366327827,1750191032997,-460.0,0.00021917,6]
[366327828,1750191033007,-460.0,0.00021917,6]
[366327829,1750191033016,-440.0,0.00021917,6]
[366327830,1750191033025,-460.0,0.00021917,6]
[366327831,1750191033035,-460.0,0.00021917,6]
[366327832,1750191033045,-460.0,0.00021917,6]
[366327833,1750191033054,-460.0,0.00021917,6]
[366327834,1750191033064,-447.99994809,0.00021917,6]
[366327835,1750191033074,-500.0,0.00021917,6]
[366327836,1750191033084,-500.0,0.00021917,6]
[366327837,1750191033093,-460.0,0.00021917,6]
[366327838,1750191033103,-1222.16,0.00021917,6]
[366327839,1750191033113,-460.0,0.00021917,6]
[366327840,1750191033123,-460.0,0.00021917,6]
[366327841,1750191033133,-1066.13,0.00021917,6]
[366327842,1750191033142,-429.41446954,0.00021917,6]
[366327843,1750191033152,-460.0,0.00021917,6]
[366327844,1750191033161,-807.16,0.00021917,6]
[366327845,1750191033171,-460.0,0.00021917,6]
[366327846,1750191033181,-516.75080527,0.00021917,6]
[366327847,1750191033191,-460.0,0.00021917,6]
[366327848,1750191033200,-460.0,0.00021917,6]